Cogmind - Beta 15 @@@ ROGUE MODE // 2025.07.28 @ 19:48:41 Player: bugsniper Result: Self-destructed Performance ------------- Evolutions (5) 2500 Regions Visited (7) 1400 Robots Destroyed (28) 140 Value Destroyed (809) 809 Prototype IDs (7) 140 Alien Tech Used (0) 0 Bonus (1178) 1178 TOTAL SCORE: 6167 Bonus ------- Entered DSFs 500 Registered with UFD 300 Met Optimus in HQ 500 Friendly Fire -122 Cogmind --------- Core Integrity 191/1000 Matter 81/300 Energy 100/100 System Corruption 14% Temperature Cool (0) Movement Core (50) Location -5/DSF Parts ------- > --- POWER (2) -------- (None) > --- PROPULSION (5) --- (None) > --- UTILITY (7) ------ (None) > --- WEAPON (3) ------- (None) > --- INVENTORY (5) ---- Light Ion Engine Improved Medium Armor Plating Improved Recalibrator Improved Arc Projector Gauss Rifle Peak State ------------ > --- POWER ------------ Light Angular Momentum Engine Light Angular Momentum Engine > --- PROPULSION ------- Spiked Treads Spiked Treads Spiked Treads Medium Treads Carbon-fiber Leg > --- UTILITY ---------- Advanced Heat Sink Large Storage Unit Medium Matter Pod Targeting Computer Light Armor Plating Advanced Shield Generator High-powered Tractor Beam > --- WEAPON ----------- Wave Gun Battle Rifle Flak Gun > --- INVENTORY -------- Improved Ion Engine Compact Wheel Compact Wheel Improved Arc Projector Heavy Laser Heavy Laser Subdweller Machine Gun Gauss Rifle Mini Assault Cannon Grenade Launcher Missile Launcher Remote Datajack Makeshift Sword Botcube [Rating: 58] Favorites ----------- Power Ion Engine Engine Ion Engine Power Core Light Fission Core Propulsion Spiked Treads Treads Spiked Treads Leg Carbon-fiber Leg Wheel Wheel Utility Light Armor Plating Device High-powered Tractor Beam Storage Large Storage Unit Processor Targeting Computer Protection Light Armor Plating Weapon Battle Rifle Energy Gun Particle Gun Ballistic Gun Battle Rifle Launcher Grenade Launcher Special Weapon Remote Datajack Slashing Weapon Makeshift Sword Special Melee Weapon Datajack Build | -11 -10 -10 -7 -5 -5 -5 -5 ------- Run | Yrd Mat Sub Scr Fac Was Fac DSF Slots Evolved 10 | . . . . 10 . . . Power 1 | . . . . 1 . . . Propulsion 3 | . . . . 3 . . . Utility 5 | . . . . 5 . . . Weapon 1 | . . . . 1 . . . Parts Attached 40 | . 10 9 2 16 1 2 . Power 6 | . 1 1 1 3 . . . Engine 5 | . 1 1 1 2 . . . Core 1 | . . . . 1 . . . Reactor . | . . . . . . . . Propulsion 8 | . 2 2 . 3 . 1 . Treads 6 | . 2 2 . 2 . . . Leg 1 | . . . . 1 . . . Wheel 1 | . . . . . . 1 . Hover . | . . . . . . . . Flight . | . . . . . . . . Utility 11 | . 3 . . 7 . 1 . Device 5 | . 1 . . 3 . 1 . Storage 2 | . 1 . . 1 . . . Processor 1 | . . . . 1 . . . Hackware . | . . . . . . . . Protection 3 | . 1 . . 2 . . . Artifact . | . . . . . . . . Weapon 15 | . 4 6 1 3 1 . . Energy Gun 5 | . 3 1 . 1 . . . Energy Cannon . | . . . . . . . . Ballistic Gun 4 | . . 3 . 1 . . . Ballistic Cannon . | . . . . . . . . Launcher 3 | . 1 1 . . 1 . . Special Weapon 1 | . . . 1 . . . . Impact Weapon . | . . . . . . . . Slashing Weapon 1 | . . . . 1 . . . Piercing Weapon . | . . . . . . . . Special Melee Weapon 1 | . . 1 . . . . . Unidentified Prototypes . | . . . . . . . . Parts Lost 15 | . . . . 4 8 . 3 Power 1 | . . . . 1 . . . Propulsion 5 | . . . . 1 3 . 1 Utility 5 | . . . . 1 3 . 1 Weapon 4 | . . . . 1 2 . 1 Highest Loss Streak 5 | . . . . 3 5 . 3 To Critical Strikes . | . . . . . . . . Average Backups 12 | . 10 14 14 9 11 4 5 Power . | . . . 1 . 1 1 1 Propulsion 2 | . 2 2 3 . 1 . . Utility 3 | . 1 5 3 . . . 2 Weapon 5 | . 4 5 6 6 8 2 2 Tool/Special . | . . . . . . . . Unused Backups 27 | . 1 10 6 . 6 . 4 Power 3 | . . . 1 . . . 2 Propulsion 7 | . . 3 2 . 2 . . Utility 7 | . 1 4 2 . . . . Weapon 10 | . . 3 1 . 4 . 2 Tool/Special . | . . . . . . . . Average Slot Usage (%) 95 | . 99 100 100 95 82 11 11 Engine 12 | . 14 14 14 7 9 . . Treads 26 | . 26 28 28 27 18 . . Device 3 | . 6 . . 11 15 2 3 Storage 12 | . 14 14 14 8 9 2 2 Protection 11 | . 7 14 14 11 3 . . Energy Gun 3 | . 13 4 . 2 4 . . Ballistic Gun 17 | . 14 5 27 12 . . . Launcher 3 | . . 17 . . 8 . . Peak Build Rating 58 | . 9 15 21 58 57 9 9 Average Rating 17 | . 8 10 17 46 47 5 4 On Entrance 15 | 6 6 9 15 19 58 1 9 Naked Turns 88 | . . . . . 18 54 16 Heaviest Build 64 | 12 33 34 40 61 64 23 23 Greatest Support 108 | 20 40 40 40 108 88 10 10 Greatest Overweight (x) 2 | . . . . . 1 2 2 Average Overweight (x) . | . . . . . . . 1 Largest Inventory Capacity 15 | . 15 15 15 15 15 15 15 Average Capacity 14 | . 12 15 15 15 13 10 7 Most Carried 15 | . 15 15 15 14 14 7 7 Average Carried 13 | . 10 14 14 9 12 4 5 Final Capacity 15 | 8 15 15 15 15 5 15 5 Final Carried 15 | 6 15 15 15 14 5 7 5 Class Distribution -------------------- 49% | Derelict-Mutant 40% | Mutant 7% | Derelict-Tank Dominant Class ---------------- Mutant | -10/Materials Mutant | -10/Subcaves Derelict-Mutant | -7/Scraptown Derelict-Tank | -5/Factory Scavenger-Tank | -5/Waste Mutant | -5/Factory Mutant | -5/DSF Resources | -11 -10 -10 -7 -5 -5 -5 -5 ----------- Run | Yrd Mat Sub Scr Fac Was Fac DSF Matter Collected 1061 | 200 217 243 10 361 . 30 . Remotely 361 | . . . . 361 . . . Salvage Created 1005 | . 423 189 . 363 . 30 . Parts 63 | . 26 14 . 19 . 4 . Haulers Intercepted 2 | . 2 . . . . . . Recyclers Shooed 2 | . 1 . . . . 1 . Parts Field Recycled . | . . . . . . . . Retrieved Matter . | . . . . . . . . Parts Self-Destructed 12 | . . 12 . . . . . Prevented . | . . . . . . . . Kills | -11 -10 -10 -7 -5 -5 -5 -5 ------- Run | Yrd Mat Sub Scr Fac Was Fac DSF Combat Hostiles Destroyed 17 | . 7 5 . 5 . . . Guns 10 | . 4 1 . 5 . . . AOE 7 | . 3 4 . . . . . Classes Destroyed 11 | . 6 2 . 2 . 1 . Worker 4 | . 1 . . 3 . . . Builder 1 | . 1 . . . . . . Tunneler 1 | . . . . . . 1 . Hauler 2 | . 2 . . . . . . Recycler 2 | . 1 . . 1 . . . Swarmer 3 | . 3 . . . . . . Grunt 7 | . 4 . . 3 . . . Hunter 1 | . . . . 1 . . . Behemoth 1 | . . . . 1 . . . Subdweller 5 | . . 5 . . . . . Federalist 1 | . . 1 . . . . . Best Kill Streak 7 | . 7 2 . 4 . 1 . Combat Bots Only 3 | . 3 2 . 2 . . . Max Kills in Single Turn 3 | . 3 2 . 2 . 1 . Gunslinging . | . . . . . . . . Exploded 1 | . 1 1 . . . . . Melee . | . . . . . . . . Uniques/NPCs Destroyed . | . . . . . . . . Combat | -11 -10 -10 -7 -5 -5 -5 -5 -------- Run | Yrd Mat Sub Scr Fac Was Fac DSF Hostile Shots Fired 168 | . 17 5 . 65 7 2 72 Missed 50 | . 6 1 . 20 1 1 21 Hits 118 | . 11 4 . 45 6 1 51 Melee 6 | . . . . . 6 . . Projectile 112 | . 11 4 . 45 . 1 51 Critical Strikes 3 | . . . . . 3 . . Damage Taken 2100 | . 137 87 . 994 211 32 639 Core 809 | . . . . 66 149 32 562 Absorbed by Shields 145 | . . . . 47 41 . 57 Core Remaining (%) 100 | 100 . . 100 . . . . Volleys Fired 75 | . 31 6 1 30 7 . . Largest 3 | . 2 2 1 3 2 . . Hottest 134 | . 85 85 5 134 66 . . Shots Fired 170 | . 58 12 1 90 9 . . Gun 147 | . 55 2 . 90 . . . Cannon . | . . . . . . . . Launcher 22 | . 3 10 . . 9 . . Special 1 | . . . 1 . . . . Kinetic 110 | . 29 1 . 80 . . . Thermal 22 | . 11 1 . 10 . . . Explosive 22 | . 3 10 . . 9 . . Electromagnetic 15 | . 15 . . . . . . Robot Hit Streak 13 | . 7 4 5 13 7 . . Robot Miss Streak 8 | . 8 . . 5 1 . . Penetration Max . | . . . . . . . . Secondary Targets 1 | . . . . 1 . . . Max Gunslinging Chain 1 | . . . . 1 . . . Shots Hit Robots 120 | . 29 4 1 77 7 2 . Core Hits 78 | . 19 10 . 46 1 1 1 Critical Kills . | . . . . . . . . Critical Parts Destroyed . | . . . . . . . . Critical Strikes . | . . . . . . . . Melee Attacks 9 | . . . . 5 . 2 2 Impact . | . . . . . . . . Slashing 9 | . . . . 5 . 2 2 Piercing . | . . . . . . . . Sneak Attacks 2 | . . . . 1 . 1 . Combat Hostiles . | . . . . . . . . Follow-up Attacks . | . . . . . . . . Damage Inflicted 3760 | . 727 363 . 1675 824 123 48 Guns 1802 | . 410 33 . 1359 . . . Cannons . | . . . . . . . . Explosions 1710 | . 308 330 . 248 824 . . Melee 174 | . . . . 68 . 106 . Ramming 74 | . 9 . . . . 17 48 Kinetic 1361 | . 199 10 . 1152 . . . Thermal 576 | . 98 23 . 455 . . . Explosive 1462 | . 308 330 . . 824 . . Electromagnetic 113 | . 113 . . . . . . Impact . | . . . . . . . . Slashing 174 | . . . . 68 . 106 . Piercing . | . . . . . . . . Highest Corruption 14 | . . . . . 13 13 14 Average Corruption 10 | . . . . . 7 13 13 Corruption Purged . | . . . . . . . . Corruption Blocked . | . . . . . . . . Effects 13 | . . . . . 7 5 1 Message Errors 3 | . . . . . 1 2 . Matter Fused 2 | . . . . . 2 . . Heat Flow Errors 3 | . . . . . 1 2 . Energy Discharges 1 | . . . . . 1 . . Data Loss (minor) 2 | . . . . . 1 . 1 Alerts 1 | . . . . . . 1 . Misdirections 1 | . . . . . 1 . . Overload Shots . | . . . . . . . . Overflow Damage 44 | . 5 . . . . 39 . Projectiles . | . . . . . . . . Explosions 5 | . 5 . . . . . . Melee 39 | . . . . . . 39 . Knockbacks . | . . . . . . . . Impact . | . . . . . . . . Kinetic . | . . . . . . . . Secondary . | . . . . . . . . Self-Inflicted Damage 34 | . 7 . . . . 7 20 Shots 1 | . 1 . . . . . . Rammed 21 | . 1 . . . . 3 17 Targets Rammed 21 | . 1 . . . . 3 17 Kicked . | . . . . . . . . Crushed . | . . . . . . . . Highest Temperature 246 | . 132 16 . 161 246 237 . Average Temperature 60 | . 42 13 . 70 129 115 . Received Heat Transfer 523 | . 51 24 . 165 . 9 274 Siege Activations . | . . . . . . . . Martial Activations . | . . . . . . . . Shielding Activations . | . . . . . . . . Robots Disrupted . | . . . . . . . . Combat Hostiles . | . . . . . . . . Robots Corrupted . | . . . . . . . . Combat Hostiles . | . . . . . . . . Parts Fried . | . . . . . . . . Impact Corruptions . | . . . . . . . . Robots Melted . | . . . . . . . . Combat Hostiles . | . . . . . . . . Parts Melted . | . . . . . . . . Heat Transferred 732 | . 222 25 . 485 . . . Parts Sabotaged . | . . . . . . . . Parts Stolen . | . . . . . . . . Parts Stripped . | . . . . . . . . Power Chain Reactions . | . . . . . . . . Alert | -11 -10 -10 -7 -5 -5 -5 -5 ------- Run | Yrd Mat Sub Scr Fac Was Fac DSF Maximum Alert Level . | . . . . . . . . Low Security (%) 100 | . 100 . . 100 100 100 100 Level 1 . | . . . . . . . . Level 2 . | . . . . . . . . Level 3 . | . . . . . . . . Level 4 . | . . . . . . . . Level 5 . | . . . . . . . . High Security . | . . . . . . . . Max Security . | . . . . . . . . Peak Influence 193 | . 127 . . 193 57 5 3 Initial 29 | . . . . . 29 . 3 Average 50 | . 39 . . 95 22 . . Influence Increases 660 | . 259 . . 337 54 10 . Destroy 0b10 Robot/C 240 | . 140 . . 100 . . . Destroy 0b10 Robot/NC 50 | . 25 . . 20 . 5 . Destroy Leader 64 | . 34 . . 30 . . . Successful Hack 15 | . 10 . . . . 5 . Disable Machine 135 | . 15 . . 120 . . . Destroy Structure 141 | . 35 . . 52 54 . . Lose Combat Pursuer 15 | . . . . 15 . . . Influence Decreases 660 | . 259 . . 254 137 5 5 Entered New Map 56 | . . . . . 54 . 2 Time Decay 531 | . 259 . . 214 53 5 . Lost Part 73 | . . . . 40 30 . 3 Squads Dispatched 4 | . 2 . . 2 . . . Investigation 2 | . 1 . . 1 . . . Extermination . | . . . . . . . . Reinforcement 2 | . 1 . . 1 . . . Assault . | . . . . . . . . Garrison . | . . . . . . . . Intercept . | . . . . . . . . Searches Triggered . | . . . . . . . . Construction Impeded . | . . . . . . . . Haulers Reinforced 1 | . . . . 1 . . . Active Scanning Responses . | . . . . . . . . Cargo Convoy Interrupts . | . . . . . . . . Stealth | -11 -10 -10 -7 -5 -5 -5 -5 --------- Run | Yrd Mat Sub Scr Fac Was Fac DSF Distress Signals 1 | . 1 . . . . . . Communications Jammed . | . . . . . . . . Distress Signals . | . . . . . . . . Times Spotted 37 | . 15 7 . 7 6 1 1 Peak Tracking Total 6 | . 4 2 . 3 6 1 1 Tactical Retreats 1 | . . . . 1 . . . Traps | -11 -10 -10 -7 -5 -5 -5 -5 ------- Run | Yrd Mat Sub Scr Fac Was Fac DSF Traps Triggered 3 | . 1 . . 1 . . 1 Indirectly . | . . . . . . . . Trap Hack Attempts . | . . . . . . . . Triggered . | . . . . . . . . Disarmed . | . . . . . . . . Reprogrammed . | . . . . . . . . Reused . | . . . . . . . . Traps Extracted . | . . . . . . . . Installed . | . . . . . . . . Triggered . | . . . . . . . . Machines | -11 -10 -10 -7 -5 -5 -5 -5 ---------- Run | Yrd Mat Sub Scr Fac Was Fac DSF Machines Disabled 9 | . 1 . . 8 . . . Max in Single Turn 8 | . 1 . . 8 . . . Machines Repaired . | . . . . . . . . Machines Dismantled . | . . . . . . . . Machines Sabotaged . | . . . . . . . . Overloaded Fab Kills . | . . . . . . . . Hacking | -11 -10 -10 -7 -5 -5 -5 -5 --------- Run | Yrd Mat Sub Scr Fac Was Fac DSF Machines Accessed 13 | . 5 . 3 3 . 2 . Terminals 7 | . 4 . . 2 . 1 . Fabricators . | . . . . . . . . Repair Stations . | . . . . . . . . Recycling Units 3 | . 1 . . 1 . 1 . Scanalyzers . | . . . . . . . . Garrison Access . | . . . . . . . . Total Hacks 43 | . 10 . 26 5 . 2 . Successful 36 | . 7 . 26 1 . 2 . Failed 7 | . 3 . . 4 . . . Catastrophic 1 | . . . . 1 . . . Database Lockouts . | . . . . . . . . Manual 4 | . . . . 4 . . . Terminals 14 | . 9 . . 4 . 1 . Fabricators . | . . . . . . . . Repair Stations . | . . . . . . . . Recycling Units 3 | . 1 . . 1 . 1 . Scanalyzers . | . . . . . . . . Garrison Access . | . . . . . . . . Terminal Hacks 33 | . 6 . 26 . . 1 . Record 26 | . . . 26 . . . . Prototype ID Bank 1 | . 1 . . . . . . Open DSF 1 | . . . . . . 1 . Branch Access Points 1 | . 1 . . . . . . Emergency Access Points 1 | . 1 . . . . . . Locate Traps 1 | . 1 . . . . . . Maintenance Status 1 | . 1 . . . . . . Zone Layout 1 | . 1 . . . . . . Fabricator Hacks . | . . . . . . . . Repair Station Hacks . | . . . . . . . . Recycling Unit Hacks 2 | . 1 . . . . 1 . Retrieve Matter 1 | . . . . . . 1 . Retrieve Components 1 | . 1 . . . . . . Scanalyzer . | . . . . . . . . Garrison Access Hacks . | . . . . . . . . Unauthorized Hacks 1 | . . . . 1 . . . Terminals 1 | . . . . 1 . . . Botnet 1 | . . . . 1 . . . Fabricators . | . . . . . . . . Repair Stations . | . . . . . . . . Recycling Units . | . . . . . . . . Scanalyzers . | . . . . . . . . Garrison Access . | . . . . . . . . Data Cores Recovered . | . . . . . . . . Used . | . . . . . . . . Hacking Detections 5 | . 2 . . 3 . . . Full Trace Events 1 | . . . . 1 . . . Feedback Events . | . . . . . . . . Feedback Blocked . | . . . . . . . . Robot Schematics Acquired . | . . . . . . . . Robots Built . | . . . . . . . . Authchips . | . . . . . . . . Time . | . . . . . . . . Total Robot Build Rating . | . . . . . . . . Part Schematics Acquired . | . . . . . . . . Parts Built . | . . . . . . . . Authchips . | . . . . . . . . Time . | . . . . . . . . Total Part Build Rating . | . . . . . . . . Parts Repaired . | . . . . . . . . Time . | . . . . . . . . Parts Recycled . | . . . . . . . . Recycled Matter . | . . . . . . . . Retrieved Matter . | . . . . . . . . Retrieved Components 9 | . 9 . . . . . . Parts Scanalyzed . | . . . . . . . . Part Schematics Acquired . | . . . . . . . . Parts Damaged . | . . . . . . . . Bothacking | -11 -10 -10 -7 -5 -5 -5 -5 ------------ Run | Yrd Mat Sub Scr Fac Was Fac DSF Used RIF Installer . | . . . . . . . . Robots Hacked 1 | . . . 1 . . . . Non-combat . | . . . . . . . . Combat 1 | . . . 1 . . . . Robot Hacks Applied 1 | . . . 1 . . . . parse_system 1 | . . . 1 . . . . Relay Couplers Released . | . . . . . . . . Fabnet Peak Effective % . | . . . . . . . . Robots Rewired . | . . . . . . . . Allies Hacked . | . . . . . . . . Hacks Repelled . | . . . . . . . . Allies | -11 -10 -10 -7 -5 -5 -5 -5 -------- Run | Yrd Mat Sub Scr Fac Was Fac DSF Total Allies 1 | . . . . . 1 . . Largest Group 1 | . . . . . 1 . . Highest-Rated Group 26 | . . . . . 26 . . Highest-Rated Ally 26 | . . . . . 26 . . Total Orders . | . . . . . . . . Ally Attacks . | . . . . . . . . Total Damage . | . . . . . . . . Kills . | . . . . . . . . Allies Corrupted . | . . . . . . . . Allies Melted . | . . . . . . . . Intel | -11 -10 -10 -7 -5 -5 -5 -5 ------- Run | Yrd Mat Sub Scr Fac Was Fac DSF Active Infowar (turns) 552 | . 472 . . . . 68 12 Seismic 552 | . 472 . . . . 68 12 Robot Analysis Total . | . . . . . . . . Derelict Logs Recovered 3 | . . . 3 . . . . Drone Launches . | . . . . . . . . Drone Recoveries . | . . . . . . . . Exploration | -11 -10 -10 -7 -5 -5 -5 -5 ------------- Run | Yrd Mat Sub Scr Fac Was Fac DSF Turns Passed 5313 | . 1033 1016 2382 540 171 135 36 Spaces Moved 3156 | 1 549 598 1479 240 115 166 8 Core 143 | . . . . . 35 105 3 Treads 2900 | . 503 598 1479 240 80 . . Legs 47 | 1 46 . . . . . . Wheels 66 | . . . . . . 61 5 Hover . | . . . . . . . . Flight . | . . . . . . . . Fastest Speed 50 | 120 120 160 160 160 50 50 50 Average Speed 153 | 120 156 160 160 160 128 72 87 Slowest Speed 250 | 120 160 160 160 160 250 110 110 Overloaded Moves . | . . . . . . . . Propulsion Burnouts . | . . . . . . . . Robots Hopped . | . . . . . . . . Potential Cave-ins . | . . . . . . . . Cave-ins Triggered . | . . . . . . . . Exploration Rate (%) 39 | 2 77 25 90 7 87 4 22 Regions Visited 7 Branch Regions 2 Pre-discovered Areas . | . . . . . . . . Known Exits Taken 1 | . . . . . . 1 . Unknown Exits Taken 4 | 1 1 1 1 . . . . Scrap Searched 10 | . . 5 5 . . . . Spaces Dug 13 | . 9 . . 4 . . . Terrain Destroyed 201 | . 56 60 . 32 53 . . Melee 4 | . . . . 4 . . . Projectile . | . . . . . . . . AOE 197 | . 56 60 . 28 53 . . Terrain Rammed . | . . . . . . . . Walls Destroyed . | . . . . . . . . Machines Disabled . | . . . . . . . . Actions | -11 -10 -10 -7 -5 -5 -5 -5 --------- Run | Yrd Mat Sub Scr Fac Was Fac DSF Total 3483 | . 665 648 1500 330 127 178 35 Wait 68 | . 50 1 . 16 . . 1 Move 3150 | . 548 597 1478 240 114 165 8 Hop . | . . . . . . . . Pick Up 55 | . 15 14 9 12 1 4 . Fast Attach 14 | . 4 . 1 7 . 2 . Attach 16 | . 1 1 . 12 . 2 . Detach 1 | . . . . 1 . . . Swap 23 | . 5 13 2 1 2 . . Drop 45 | . 10 16 9 6 3 . 1 Fire 75 | . 31 6 1 30 7 . . Melee 9 | . . . . 5 . 2 2 Ram 20 | . . . . . . 3 17 Kick . | . . . . . . . . Crush 1 | . 1 . . . . . . Escape Stasis 6 | . . . . . . . 6 Rewire . | . . . . . . . . Trap . | . . . . . . . . Miscellaneous . | . . . . . . . . Route ------- -11/Scrapyard -10/Materials (discovered 5 exits: [*Mat x2] / *Min x2 / [*Sub]) -10/Subcaves (discovered 2 exits: [*Mat] / *Scr) -7/Scraptown (discovered 2 exits: *Fac x2) -5/Factory -5/Waste -5/Factory -5/DSF History --------- Turn | Location | Event 1 | -11/Scrapyard | Discovered new exit (range 0) 1 | -11/Scrapyard | Entered Materials 2 | -10/Materials | Met a group of wandering Federalists 82 | -10/Materials | Discovered new exit (range 8) 255 | -10/Materials | Discovered new exit (range 8) 312 | -10/Materials | Build established: Mutant 425 | -10/Materials | Identified exit to Mines 891 | -10/Materials | Discovered new exit (range 5) 1030 | -10/Materials | Discovered new exit (range 3) 1034 | -10/Materials | Entered Subcaves 1035 | -10/Subcaves | Continued accompanying wandering Federalists (4) 1039 | -10/Subcaves | Ambushed by Subdweller buried in earth 1280 | -10/Subcaves | Discovered new exit (range 12) 1877 | -10/Subcaves | Disturbed a concealed Subdweller 2050 | -10/Subcaves | Entered Scraptown 2274 | -7/Scraptown | Heard Great Nut preacher, LISTEN AND RECITE! 2287 | -7/Scraptown | Build established: Derelict-Mutant 2668 | -7/Scraptown | Discovered new exit (range 7) 2711 | -7/Scraptown | Scanned Subdweller tech in exchange for log data 2715 | -7/Scraptown | Learned Research terminal intel 2716 | -7/Scraptown | Learned Research interactive machine intel 2718 | -7/Scraptown | Learned Research stockpile data 2772 | -7/Scraptown | Visited Assassins FH 2819 | -7/Scraptown | Visited CPS Storage 2828 | -7/Scraptown | Visited Shadow of the Wyrm 2875 | -7/Scraptown | Visited Red Mages 2921 | -7/Scraptown | Visited TADAMA 2955 | -7/Scraptown | Visited Fellowship of the Rings 3303 | -7/Scraptown | Visited UFD Registry 3303 | -7/Scraptown | Registered with UFD as "Chainhacker" 3326 | -7/Scraptown | Visited The Evicted 3466 | -7/Scraptown | Guru changed UFD alias to "Alphachaser" 3661 | -7/Scraptown | Visited Curators Association 3685 | -7/Scraptown | Visited Botcube Research 3692 | -7/Scraptown | Found Botcube 3731 | -7/Scraptown | Visited Junk Repository 3920 | -7/Scraptown | Visited Science Testing Area 3949 | -7/Scraptown | Visited Scrap Suit Storage 4114 | -7/Scraptown | Visited Observation Area 4182 | -7/Scraptown | Visited LU-1G1's Boring Crew 4227 | -7/Scraptown | Received an X-ray algorithm 4246 | -7/Scraptown | Visited Scrapoid Pod Storage 4312 | -7/Scraptown | Met Optimus 4312 | -7/Scraptown | Accepted into 0bPrime 4425 | -7/Scraptown | Discovered new exit (range 3) 4432 | -7/Scraptown | Entered Factory 4432 | -5/Factory | Evolved 10 slots: Power x1, Propulsion x3, Utility x5, Weapon x1 4562 | -5/Factory | Spotted B-75 Beast 4607 | -5/Factory | Destroyed B-75 Beast 4636 | -5/Factory | Lost 3 parts (1p1u1w) 4972 | -5/Factory | Sucked down chute 4972 | -5/Factory | Entered Waste 4987 | -5/Waste | EMP discharged 5016 | -5/Waste | Spotted C-40 Crusher 5071 | -5/Waste | Spotted C-40 Crusher 5071 | -5/Waste | Spotted C-40 Crusher 5083 | -5/Waste | Crushed by Compactor (1 part destroyed, 1 dropped) 5087 | -5/Waste | EMP discharged 5087 | -5/Waste | System corruption reached 10% 5093 | -5/Waste | Spotted C-40 Crusher 5103 | -5/Waste | Spotted C-40 Crusher 5114 | -5/Waste | Lost 3 parts (1n1u1w) 5116 | -5/Waste | Crushed by Compactor (1 part destroyed, 1 dropped) 5122 | -5/Waste | Crushed by Compactor (1 part destroyed, 2 dropped) 5122 | -5/Waste | Crushed by Compactor (1 part destroyed, 1 dropped) 5125 | -5/Waste | Crushed by Compactor (1 part destroyed, 2 dropped) 5125 | -5/Waste | Crushed by Compactor (1 part destroyed) 5128 | -5/Waste | Botcube activated 5128 | -5/Waste | Spotted C-40 Crusher 5138 | -5/Waste | Discovered new exit (range 10) 5143 | -5/Waste | Entered Factory 5156 | -5/Factory | Lost 5 parts (2n2u1w) 5277 | -5/Factory | Identified exit to DSF 5278 | -5/Factory | Entered DSF 5303 | -5/DSF | Core integrity fell below 50% 5314 | -5/DSF | Core integrity fell below 20% 5314 | -5/DSF | Self-destructed Last Messages --------------- 05290_ Slammed into X-77 Beamer. 05290_ Seismic Detector broken. 05290_ Destabilizing: Short circuit. 05291_ Slammed into X-77 Beamer. 05296_ Destabilizing: System corrupted (+1). 05297_ Slammed into X-77 Beamer. 05298_ Broken Seismic Detector destroyed. 05298_ Slammed into X-77 Beamer. 05303_ Triggered Stasis Trap. 05303_ A bubble of rippling energy engulfs the area. 05303_ Field strength at 94. 05304_ Field strength at 88. 05305_ Field strength at 82. 05306_ Field strength at 46. 05307_ Field strength at 40. 05308_ Field strength at 34. 05309_ Field strength at 28. 05310_ Stasis field depleted. 05310_ Slammed into X-77 Beamer. Map ----- +----------------------------------------------------+ | ??????????????????????????????????????? | | ??????????????????????????????????????? | | ??????????????????????????????????????? | | ??????????????????????????????????????? | | ??????????????????????????????????????? | | ???????## ???????????????????????????? | | ??????# ???????????????????????????? | | ??????# #??????????????????????????? | | ???????!! ??????????????????????????? | | ???????!^! ????????????H?????????????? | | ???????!^! ??????????????????????????? | | ????????[ #??????????????????????????? | | ????????[ #??????????????????????????? | | ???????## ##?????????????????????????? | | ???????#* **?????????????????????????? | | ???????#* *??????????????????????????? | | ???????#* *??????????????????????????? | | ???????## ###????????????????????????? | | ???????#* ]**#????????????????????????? | | ???????#**!**#????????????????????????? | | ???????## ##########?????????????????? | | ??????### ###**#***#?????#???????????? | | ????###"" ##**#***### ###?????????? | | ???#""""" #?????????? | | ???#"##"" x #?????????? | | ??????#"""""##@*#***# **#?????????? | | ??????#"""""#########?? **#?????????? | | ??????####"##?????????????###?????????? | | ?????????#"#??????????????????????????? | | ?????????""#??????????????????????????? | | ?????????##???????????????????????????? | | ??????????????????????????????????????? | | ??????????????????????????????????????? | | ??????????????????????????????????????? | | ??????????????????????????????????????? | | | | | | | | | | | | | | | | | | | | | | | | | | | | | | | +----------------------------------------------------+ Best States ------------- Heat Dissipation 59 Energy Generation 31 Energy Capacity 390 Matter Stores 300 Matter Capacity 400 Sight Range 16 Terrain Scan Density 10 Armor Coverage 450 Evasion (%) 55 Targeting Accuracy 5 Recoil Reduction 5 Item Schematics ----------------- None Robot Schematics ------------------ None Fabricated ------------ Nothing Repaired ---------- Nothing Alien Tech Used ----------------- None Achievements -------------- None Challenges ------------ None Game ------ Seed ThiefCompositeGravjet Manual? 0 Play Time 00:48:18 Cumulative 428.3 hours Start 2025.07.28 @ 19:01:05 End 2025.07.28 @ 19:48:41 Sessions 1 Manual Loads 0 Difficulty Rogue Special Mode None Game No. 244 Rogue 244 Adventurer 0 Explorer 0 Win Type - Total 11 Types 10/0/1/0/0/0/0/0/0/0 Lore% 66 Gallery% 66 Achievement% 53 Wizard Run 0 Options --------- Layout 1 ASCII 0 Keyboard 0 Movement Numpad Keybinds 0 Fullscreen 1 Font 24/Smallcaps Map View 50x35 Zoom Use 0% Tactical HUD 1 Map Filters NONE Filters NONE Steam 1 RUN: 9aa1a8e5-64c7-4d76-852e-4c35d064cc34